bitfinex/quotes_SOLUSD_20260310
["timestamp","ask_amount","ask_price","bid_price","bid_amount"]
[1773129950836,10.8544849,86.99,86.96,10.8544849]
[1773129951251,1.3532398,86.989,86.952,1.37338582]
[1773129951449,1.3532398,86.989,86.953,11.50046576]
[1773129951855,12.84907049,86.989,86.953,11.50046576]
[1773129952058,1.3532398,86.989,86.96,10.8544849]
[1773129952463,1.3532398,86.989,86.954,1.37338582]
[1773129952670,1.3532398,87.011,86.971,1.37338582]
[1773129952959,1.3532398,87.054,87.001,1.37338582]
[1773129953263,1.3532398,87.049,87.01,10.8544849]
[1773129953459,11.4864632,87.059,87.002,11.49398864]
[1773129953460,1.3532398,87.039,87.002,11.49398864]
[1773129953770,1.3532398,87.039,87.01,10.27992526]
[1773129953945,1.3532398,87.029,87.002,11.49398864]
[1773129954661,1.3532398,87.039,87.002,11.49398864]
[1773129955557,1.3532398,87.019,86.991,11.49544205]
[1773129955857,1.3532398,87.019,86.983,11.49649065]
[1773129956058,40.21232104,87.038,86.96,10.8544849]
[1773129956059,1.3532398,86.999,86.96,10.8544849]
[1773129956259,10.8544849,86.99,86.96,10.8544849]
[1773129956468,10.8544849,86.99,86.957,11.49993675]
[1773129956764,1.3532398,86.999,86.96,10.8544849]
[1773129956965,1.3532398,87.037,86.97,10.8544849]
[1773129957261,10.8544849,87.0,86.97,10.8544849]
[1773129957439,1.3532398,86.999,86.959,11.49967225]
[1773129957644,1.3532398,86.999,86.96,12.22787072]
[1773129957843,1.3532398,86.999,86.97,10.8544849]
[1773129958056,1.3532398,86.999,86.96,12.22787072]
[1773129958255,1.3532398,86.999,86.97,10.8544849]
[1773129958459,10.8544849,87.02,86.98,12.22787072]
[1773129958657,1.3532398,87.009,86.97,10.8544849]
[1773129958867,1.3532398,86.999,86.97,10.8544849]
[1773129959167,1.3532398,86.999,86.96,10.8544849]
[1773129959668,1.3532398,87.02,86.981,1.37338582]
[1773129960059,1.3532398,87.02,86.99,10.8544849]
[1773129960262,1.3532398,87.041,87.01,10.8544849]
[1773129960447,10.8544849,87.04,87.01,10.8544849]
[1773129960762,1.3532398,87.029,86.963,1.37338582]
[1773129960960,1.3532398,87.029,87.0,10.8544849]
[1773129961348,1.3532398,87.067,87.021,1.37338582]
[1773129961578,1.3532398,87.067,87.03,10.8544849]
[1773129961755,1.3532398,87.067,87.04,10.8544849]
[1773129962050,1.3532398,87.059,87.022,11.49134701]
[1773129962255,1.3532398,87.049,87.022,11.49134701]
[1773129962654,1.3532398,87.029,86.992,11.49530991]
[1773129963169,1.3532398,87.029,86.992,40.23358469]
[1773129963462,1.39575434,87.039,87.0,10.8544849]
[1773129963768,10.8544849,87.03,87.001,11.49412075]
[1773129963948,1.39575434,87.019,86.98,10.8544849]
[1773129964153,1.39575434,86.999,86.96,10.8544849]
[1773129964869,1.39575434,86.989,86.96,10.8544849]
[1773129965777,1.39575434,86.989,86.961,11.49940778]
[1773129966352,1.39575434,86.989,86.96,10.8544849]
[1773129966552,1.39575434,86.988,86.95,10.8544849]
[1773129966853,1.39575434,86.988,86.948,11.50112711]
[1773129966854,1.39575434,86.988,86.96,10.8544849]
[1773129967250,1.39575434,86.988,86.95,10.8544849]
[1773129967447,1.39575434,86.988,86.96,10.8544849]
[1773129967670,1.39575434,86.988,86.96,22.38502622]
[1773129968575,1.39575434,86.999,86.97,10.88558644]
[1773129968955,1.39575434,86.999,86.964,1.39673635]
[1773129969164,1.39575434,86.989,86.96,22.38502622]
[1773129969366,1.39575434,86.989,86.96,11.49943978]
[1773129969564,12.89013933,86.999,86.96,51.13387626]
[1773129970080,1.39575434,86.979,86.955,11.50015103]
[1773129970254,1.39575434,86.979,86.95,11.50080053]
[1773129970462,1.39575434,86.979,86.95,22.38638697]
[1773129970974,1.39575434,86.989,86.95,22.38638697]
[1773129971275,11.49438499,86.999,86.95,40.25295694]
[1773129971276,1.39575434,86.979,86.95,40.25295694]
[1773129971473,1.39575434,86.979,86.95,11.50080053]
[1773129971673,1.39575434,86.979,86.94,11.70205592]
[1773129971982,1.39575434,86.969,86.94,22.58764236]
[1773129972578,1.39575434,86.969,86.94,11.70205592]
[1773129972782,10.88558644,86.96,86.94,11.70205592]
[1773129972965,1.39575434,86.939,86.914,11.50562625]
[1773129974284,1.39575434,86.939,86.911,11.5060234]
[1773129974865,1.39575434,86.937,86.911,11.5060234]
[1773129975468,1.39575434,86.937,86.91,0.2]
[1773129976161,1.39575434,86.937,86.911,11.5060234]
[1773129976985,1.39575434,86.949,86.911,40.2710819]
[1773129977167,10.88558644,86.94,86.911,11.5060234]
[1773129977363,1.39575434,86.949,86.911,11.5060234]
[1773129977667,1.39575434,86.959,86.921,1.39673635]
[1773129977862,1.39575434,86.959,86.92,10.88558644]
[1773129978388,1.39575434,86.949,86.92,10.88558644]
[1773129978883,1.39575434,86.957,86.92,22.39041846]
[1773129979079,11.4998045,86.958,86.92,11.50483202]
[1773129979080,1.39575434,86.949,86.92,11.50483202]
[1773129979383,3.69383402,86.975,86.91,11.08558644]
[1773129979384,1.39575434,86.929,86.91,0.2]
[1773129980283,1.39575434,86.919,86.892,11.50849995]
[1773129981262,1.39575434,86.919,86.881,1.39673635]
[1773129981263,10.88558644,86.91,86.882,11.50986395]
[1773129981491,1.39575434,86.919,86.883,1.39673635]
[1773129982195,1.39575434,86.919,86.89,10.88558644]
[1773129982371,1.39575434,86.929,86.891,1.39673635]
[1773129982567,45.99329129,86.97,86.882,40.28452383]
[1773129982568,1.39575434,86.949,86.911,1.39673635]
[1773129982881,12.28134078,86.94,86.905,1.39673635]
[1773129983075,1.39575434,86.949,86.92,10.88558644]
[1773129983283,1.39575434,86.957,86.921,11.50469966]
[1773129983472,10.88558644,86.95,86.921,11.50469966]
[1773129983669,12.28134078,86.95,86.921,11.50469966]
[1773129984093,1.39575434,86.949,86.921,11.50469966]
[1773129984406,1.39575434,86.929,86.886,11.50933406]
[1773129984692,1.39575434,86.929,86.9,10.88558644]
[1773129985883,1.39575434,86.919,86.901,11.50734744]
[1773129986086,1.39575434,86.919,86.891,11.50867178]
[1773129986793,10.88558644,86.9,86.876,11.51065887]
[1773129987085,1.39575434,86.889,86.851,28.78467085]
[1773129987289,1.39575434,86.879,86.85,0.2]
[1773129987479,1.39575434,86.869,86.85,0.2]
[1773129988690,1.39575434,86.879,86.85,11.08558644]
[1773129988879,1.39575434,86.879,86.85,0.2]
[1773129989384,1.39575434,86.869,86.85,0.2]
[1773129989783,1.39575434,86.879,86.85,0.2]
[1773129989990,10.88558644,86.86,86.85,0.2]
[1773129990191,1.39575434,86.859,86.85,1e-08]
[1773129990373,1.39575434,86.859,86.83,0.2]
[1773129990787,1.39575434,86.849,86.83,0.2]
[1773129990996,1.39575434,86.849,86.83,11.71671311]
[1773129991372,1.39575434,86.839,86.81,0.2]
[1773129991577,1.39575434,86.831,86.81,11.71932885]
[1773129991777,10.88558644,86.84,86.81,11.71932885]
[1773129991989,1.39575434,86.817,86.785,11.52266073]
[1773129992293,1.39575434,86.809,86.766,11.52520025]
[1773129992498,1.39575434,86.809,86.729,46.12053779]
[1773129992499,10.88558644,86.78,86.748,1.39673635]
[1773129992796,10.88558644,86.77,86.738,1.39673635]
[1773129993100,1.39575434,86.804,86.75,10.88558644]
[1773129993396,40.31422054,86.818,86.761,1.39673635]
[1773129993397,1.39575434,86.799,86.761,1.39673635]
[1773129993610,10.88558644,86.78,86.75,10.88558644]
[1773129993780,10.88558644,86.78,86.747,1.34915369]
[1773129994090,11.52352527,86.779,86.75,10.88558644]
[1773129994301,1.36251043,86.789,86.751,1.34915369]
[1773129994971,1.36251043,86.803,86.761,1.34915369]
[1773129995196,1.36251043,86.803,86.747,40.3471744]
[1773129995197,10.88558644,86.78,86.75,1.34915369]
[1773129995400,10.88558644,86.78,86.75,12.23474013]
[1773129995704,10.88558644,86.76,86.729,1.34915369]
[1773129995880,3.69383402,86.795,86.708,1.34915369]
[1773129995881,10.88558644,86.74,86.708,1.34915369]
[1773129996082,10.88558644,86.73,86.709,11.53282819]
[1773129996282,28.81474559,86.762,86.709,11.53282819]
[1773129996283,1.36251043,86.773,86.721,1.34915369]
[1773129996483,12.24809687,86.77,86.731,1.34915369]
[1773129996684,12.24809687,86.77,86.709,40.36489867]
[1773129996685,1.36251043,86.819,86.741,1.34915369]
[1773129996877,1.36251043,86.779,86.74,12.23474013]
[1773129997184,1.36251043,86.779,86.75,10.88558644]
[1773129997504,12.24809687,86.79,86.751,1.34915369]
[1773129998077,10.88558644,86.77,86.738,1.34915369]
[1773129998282,10.88558644,86.77,86.74,12.23474013]
[1773129998482,1.36251043,86.779,86.74,12.23474013]
[1773129998483,1.36251043,86.779,86.741,1.34915369]
[1773129998684,10.88558644,86.78,86.741,1.34915369]
[1773129998884,10.88558644,86.77,86.741,1.34915369]
[1773129999153,10.88558644,86.78,86.741,1.34915369]
[1773129999589,10.88558644,86.79,86.751,1.34915369]
[1773129999789,1.36251043,86.789,86.751,1.34915369]
[1773130000013,10.88558644,86.78,86.751,1.34915369]
[1773130000186,1.36251043,86.789,86.753,1.34915369]
[1773130000389,12.88477242,86.789,86.753,0.77335194]
[1773130000585,10.88558644,86.79,86.753,0.77335194]
[1773130000791,12.88046916,86.821,86.78,10.88558644]
[1773130000992,10.88558644,86.8,86.77,10.88558644]
[1773130001901,12.24809687,86.82,86.78,10.88558644]
[1773130002100,1.36251043,86.799,86.77,10.88558644]
[1773130002304,10.88558644,86.79,86.76,10.88558644]
[1773130002685,10.88558644,86.79,86.764,11.52545885]
[1773130003001,1.36251043,86.799,86.764,11.52545885]
[1773130003510,12.88072648,86.819,86.78,10.88558644]
[1773130003708,12.88072648,86.819,86.78,12.23474013]
[1773130003885,1.36251043,86.819,86.79,10.88558644]
[1773130004209,1.36251043,86.819,86.791,11.52193199]
[1773130004802,10.88558644,86.81,86.791,11.52193199]
[1773130005790,1.36251043,86.819,86.782,12.8722806]
[1773130006010,1.36251043,86.817,86.783,1.34915369]
[1773130006207,1.36251043,86.817,86.79,10.88558644]
[1773130006595,1.36251043,86.817,86.783,1.34915369]
[1773130007116,1.49069218,86.828,86.791,1.47053928]
[1773130007417,1.49069218,86.826,86.791,1.47053928]
[1773130007585,28.78786046,86.843,86.782,40.33094419]
[1773130007586,1.49069218,86.837,86.801,1.47053928]
[1773130007789,1.49069218,86.835,86.801,1.47053928]
[1773130007992,1.49069218,86.829,86.797,11.52111363]
[1773130008212,1.49069218,86.809,86.781,11.52325969]
[1773130008716,10.88558644,86.83,86.791,1.47053928]
[1773130008895,10.88558644,86.83,86.801,1.47053928]
[1773130009692,12.37627862,86.84,86.801,1.47053928]
[1773130009895,1.49069218,86.839,86.801,1.47053928]
[1773130010295,1.49069218,86.829,86.789,1.47053928]
[1773130010591,1.49069218,86.829,86.79,10.88558644]
[1773130010793,10.88558644,86.82,86.79,10.88558644]
[1773130010991,12.37627862,86.82,86.79,10.88558644]
[1773130011189,1.49069218,86.82,86.79,10.88558644]
[1773130012096,11.51569589,86.838,86.801,1.47053928]
[1773130012417,1.49069218,86.837,86.802,11.52047187]
[1773130012611,1.49069218,86.829,86.802,11.52047187]
[1773130012917,1.49069218,86.829,86.792,11.52179924]
[1773130013308,1.49069218,86.829,86.758,46.10477492]
[1773130013309,1.49069218,86.809,86.78,11.52329896]
[1773130013517,1.49069218,86.809,86.775,11.52401405]
[1773130013809,1.49069218,86.819,86.781,1.47053928]
[1773130014003,1.49069218,86.809,86.781,1.47053928]
[1773130014390,1.49069218,86.809,86.782,11.52312691]
[1773130015207,12.37627862,86.8,86.776,11.52387255]
[1773130016006,1.49069218,86.799,86.776,11.52387255]
[1773130016824,10.88558644,86.81,86.781,1.47053928]
[1773130017132,1.49069218,86.808,86.771,12.99502202]
[1773130017700,1.49069218,86.799,86.771,11.52448274]
[1773130018503,1.49069218,86.809,86.776,11.52390266]
[1773130019620,1.49069218,86.809,86.78,10.88558644]
[1773130019821,1.49069218,86.809,86.78,12.35612572]
[1773130020301,1.49069218,86.818,86.791,1.47053928]
[1773130020503,10.88558644,86.81,86.791,11.52190482]
[1773130020804,1.49069218,86.828,86.792,1.47053928]
[1773130021012,11.5158676,86.837,86.81,10.88558644]
[1773130021318,11.5158676,86.837,86.791,11.52190482]
[1773130021319,1.49069218,86.839,86.8,10.88558644]
[1773130021503,1.49069218,86.829,86.798,1.47053928]
[1773130022109,1.49069218,86.819,86.791,11.52190482]
[1773130023643,3.69383402,86.854,86.791,11.52190482]
[1773130023644,1.42090764,86.853,86.811,1.48023915]
[1773130023796,1.42090764,86.853,86.791,115.21929279]
[1773130023797,1.42090764,86.862,86.84,10.88558644]
[1773130024001,10.88558644,86.87,86.84,10.88558644]
[1773130024305,12.93249405,86.869,86.84,10.88558644]
[1773130024603,11.51185145,86.867,86.833,1.48023915]
[1773130024815,11.51185145,86.867,86.832,11.51649161]
[1773130024816,1.42090764,86.879,86.86,10.88558644]
[1773130025032,11.50916697,86.888,86.86,10.88558644]
[1773130025208,11.50916697,86.888,86.851,1.48023915]
[1773130025623,11.50893668,86.889,86.86,10.88558644]
[1773130026102,1.42090764,86.89,86.86,10.88558644]
[1773130026298,1.42090764,86.899,86.87,10.88558644]
[1773130026600,11.50761228,86.899,86.871,1.48023915]
[1773130027209,1.42090764,86.904,86.873,1.48023915]
[1773130027729,1.42090764,86.889,86.86,11.51271579]
[1773130028829,1.42090764,86.887,86.854,11.5135319]
[1773130029717,1.42090764,86.904,86.87,12.39159814]
[1773130029923,10.91135899,86.9,86.87,12.39159814]
[1773130030914,10.91135899,86.9,86.871,11.51132138]
[1773130031228,3.69383402,86.924,86.871,11.51132138]
[1773130031229,10.91135899,86.91,86.881,1.48023915]
[1773130031428,1.42090764,86.909,86.872,1.48023915]
[1773130033032,10.91135899,86.91,86.874,1.48023915]
[1773130033233,0.1,86.92,86.9,10.91135899]
[1773130033535,0.1,86.92,86.891,1.48023915]
[1773130034830,0.1,86.92,86.893,1.48023915]
[1773130035535,0.1,86.92,86.9,10.91135899]
[1773130035727,12.92124114,86.954,86.911,1.48023915]
[1773130035923,12.92124114,86.954,86.92,10.91135899]
[1773130036231,10.91135899,86.95,86.92,10.91135899]
[1773130036435,11.49952269,86.961,86.93,10.91135899]
[1773130036620,10.91135899,86.96,86.93,10.91135899]
[1773130036815,1.42090764,86.963,86.932,10.92812772]
[1773130037021,10.91135899,86.97,86.94,10.91135899]
[1773130037633,22.40966408,86.97,86.933,1.48023915]
[1773130037936,1.42090764,86.969,86.933,1.48023915]
[1773130038820,11.4984822,86.968,86.934,11.50297927]
[1773130039227,1.42090764,86.967,86.934,11.50297927]
[1773130039439,1.42090764,86.959,86.931,11.50337624]
[1773130040038,11.4984822,86.968,86.932,1.48023915]
[1773130040220,10.91135899,86.97,86.94,12.39159814]
[1773130040420,1.42090764,86.969,86.931,41.74205599]
[1773130040617,1.42090764,86.949,86.925,11.50404298]
[1773130040935,51.96,86.98,86.902,1.48023915]
[1773130040936,1.42090764,86.939,86.902,1.48023915]
[1773130041314,1.42090764,86.949,86.911,1.48023915]
[1773130041513,1.42090764,86.919,86.882,11.50986395]
[1773130041733,3.69383402,86.947,86.9,10.91135899]
[1773130041734,10.91135899,86.93,86.9,10.91135899]
[1773130042038,1.42090764,86.947,86.92,10.91135899]
[1773130042622,1.42090764,86.939,86.901,1.48023915]
[1773130042817,1.42090764,86.929,86.9,10.91135899]
[1773130043037,1.42090764,86.949,86.911,1.48023915]
[1773130043211,10.91135899,86.94,86.911,1.48023915]
[1773130043611,1.42090764,86.929,86.9,10.91135899]
[1773130044217,10.91135899,86.92,86.892,1.48023915]
[1773130044723,1.42090764,86.929,86.9,10.91135899]
[1773130044923,1.42090764,86.929,86.901,11.50734744]
[1773130045244,11.50377323,86.928,86.901,11.50734744]
[1773130045536,11.50377323,86.928,86.892,1.48023915]
[1773130045537,1.42090764,86.927,86.894,11.50823209]
[1773130045916,1.42090764,86.927,86.9,10.91135899]
[1773130046114,10.91135899,86.93,86.9,10.91135899]
[1773130046339,10.91135899,86.93,86.901,1.48023915]
[1773130046524,1.42090764,86.929,86.901,1.48023915]
[1773130046914,12.92454854,86.929,86.902,11.50721502]
[1773130047422,1.42090764,86.949,86.911,1.48023915]
[1773130047618,1.42090764,86.949,86.92,10.91135899]
[1773130049136,1.42090764,86.949,86.921,11.50469966]
[1773130049319,1.42090764,86.958,86.93,10.91135899]
[1773130049521,1.42090764,86.956,86.922,1.48023915]
[1773130049839,10.91135899,86.95,86.922,1.48023915]
[1773130050222,1.42090764,86.949,86.921,11.50469966]
[1773130051932,11.50112711,86.948,86.914,12.9858654]
[1773130052329,1.42090764,86.976,86.941,1.48023915]
[1773130052641,1.42090764,86.976,86.95,10.91135899]
[1773130054144,3.69383402,87.004,86.914,97.79782312]
[1773130054145,11.49346022,87.006,86.971,1.49532459]
[1773130054328,1.4412869,86.999,86.961,1.49532459]
[1773130055242,1.4412869,86.999,86.97,10.91135899]
[1773130055624,1.4412869,86.999,86.961,1.49532459]
[1773130056240,10.91135899,86.98,86.95,10.91135899]
[1773130056444,10.91135899,86.98,86.941,11.50205311]
[1773130056445,1.4412869,86.979,86.941,11.50205311]
[1773130056629,12.35264589,86.97,86.941,11.50205311]
[1773130057042,10.91135899,86.98,86.942,1.49532459]
[1773130057247,10.91135899,86.98,86.95,12.40668358]
[1773130057440,1.4412869,86.979,86.95,12.40668358]
[1773130057635,1.4412869,86.979,86.94,12.40668358]
[1773130057849,1.4412869,86.969,86.932,1.49532459]
[1773130058048,1.4412869,86.969,86.94,10.91135899]
[1773130058430,1.4412869,86.959,86.926,1.49532459]
[1773130058632,11.4984822,86.968,86.92,10.91135899]
[1773130058633,1.4412869,86.949,86.92,10.91135899]
[1773130058852,1.4412869,86.949,86.92,11.50478938]
[1773130059170,1.4412869,86.949,86.916,1.49532459]
[1773130059451,1.4412869,86.939,86.917,11.50522912]
[1773130059645,1.4412869,86.939,86.912,11.50582021]
[1773130059850,12.93902597,86.974,86.93,10.91135899]
[1773130060152,1.4412869,87.04,86.961,1.49532459]
[1773130060447,1.4412869,87.017,86.98,10.91135899]
[1773130060831,1.4412869,87.017,86.99,10.91135899]
[1773130061033,1.4412869,87.017,86.98,10.91135899]
[1773130061442,1.4412869,87.017,86.99,10.91135899]
[1773130062133,11.49129258,87.023,86.99,10.91135899]
[1773130062348,12.35264589,87.02,86.991,11.49544205]
[1773130062648,1.4412869,87.019,86.991,11.49544205]
[1773130062827,1.4412869,87.018,86.986,11.49604077]
[1773130063032,1.4412869,87.018,86.949,92.0076009]
[1773130063033,1.4412869,87.009,86.97,10.91135899]
[1773130063436,3.69383402,87.044,86.968,11.4984822]
[1773130063437,1.4412869,87.057,87.001,1.49532459]
[1773130063730,1.4412869,87.057,87.04,10.91135899]
[1773130064047,1.4412869,87.068,87.04,10.91135899]
[1773130064244,1.4412869,87.068,87.033,1.49532459]
[1773130064454,1.4412869,87.049,86.976,4.82477569]
[1773130064659,1.4412869,87.049,86.972,119.80430932]
[1773130064660,1.4412869,87.049,87.01,10.91135899]
[1773130065150,0.1,87.05,87.031,1.49532459]
[1773130065359,0.1,87.05,87.03,10.91135899]
[1773130065543,1.4412869,87.049,87.02,10.91135899]
[1773130066328,11.48024708,87.107,87.043,1.49532459]
[1773130066530,1.4412869,87.106,87.066,1.49532459]
[1773130066732,1.4412869,87.106,87.042,86.1652995]
[1773130066733,1.4412869,87.129,87.09,10.91135899]
[1773130067254,131.9291483,87.168,87.08,10.91135899]
[1773130067255,1.4412869,87.109,87.08,10.91135899]
[1773130067443,10.91135899,87.12,87.08,10.91135899]
[1773130067645,1.4412869,87.122,87.09,10.91135899]
[1773130067829,10.91135899,87.11,87.07,1.49532459]
[1773130068034,1.4412869,87.099,87.07,10.91135899]
[1773130068240,1.4412869,87.089,87.05,10.91135899]
[1773130068444,1.4412869,87.089,87.051,11.48751881]
[1773130068644,1.44076023,87.087,87.051,11.48751881]
[1773130068958,10.91135899,87.08,87.051,11.48751881]
[1773130069335,1.44076023,87.087,87.06,10.91135899]
[1773130069649,10.91135899,87.09,87.06,10.91135899]
[1773130069849,1.44076023,87.079,87.051,11.48751881]
[1773130070245,1.44076023,87.089,87.06,10.91135899]
[1773130070446,10.91135899,87.09,87.06,10.91135899]
[1773130070645,1.44076023,87.079,87.053,11.48725489]
[1773130071254,1.44076023,87.09,87.06,10.91135899]
[1773130071551,1.44076023,87.079,87.053,11.48725489]
[1773130072335,1.44076023,87.079,87.053,40.20539211]
[1773130072560,11.47987004,87.109,87.062,1.46834815]
[1773130072747,180.6040782,87.587,87.104,1.46834815]
[1773130072748,1.44076023,87.199,87.104,1.46834815]
[1773130072945,1.44076023,87.199,87.061,11.48619933]
[1773130072946,1.44076023,87.212,87.151,1.46834815]
[1773130073155,28.66152693,87.225,87.15,10.91135899]
[1773130073156,1.44076023,87.189,87.15,10.91135899]
[1773130073976,1.44076023,87.189,87.144,1.46834815]
[1773130074213,1.44076023,87.179,87.14,10.91135899]
[1773130074461,1.44076023,87.189,87.15,10.91135899]
[1773130074664,0.1,87.19,87.17,10.91135899]
[1773130074859,0.1,87.19,87.161,1.46834815]
[1773130075466,1.54076023,87.19,87.16,10.91135899]
[1773130075644,1.44076023,87.169,87.144,11.47521589]
[1773130075845,0.1,87.19,87.144,11.47521589]
[1773130075846,0.1,87.19,87.151,1.46834815]
[1773130076053,0.1,87.2,87.171,1.46834815]
[1773130076277,11.72135899,87.24,87.19,10.91135899]
[1773130076278,1.44076023,87.238,87.19,10.91135899]
[1773130076564,12.90378623,87.237,87.2,10.91135899]
[1773130076759,10.91135899,87.23,87.2,10.91135899]
[1773130076967,11.463026,87.237,87.189,11.46933339]
[1773130076968,1.44076023,87.219,87.189,11.46933339]
[1773130077158,1.44076023,87.233,87.191,1.46834815]
[1773130077343,0.81,87.24,87.211,1.46834815]
[1773130077541,11.46092397,87.253,87.189,11.46933339]
[1773130077764,11.46092397,87.253,87.142,45.90182196]
[1773130077765,1.44076023,87.219,87.17,11.47183664]
[1773130077982,131.80062573,87.253,87.21,10.91135899]
[1773130077983,1.44076023,87.246,87.21,10.91135899]
[1773130078293,1.44076023,87.252,87.191,1.46834815]
[1773130078578,1.44076023,87.229,87.2,10.91135899]
[1773130078779,10.91135899,87.23,87.2,10.91135899]
[1773130078953,10.91135899,87.23,87.192,11.4689421]
[1773130079160,11.46276321,87.239,87.17,10.91135899]
[1773130079161,1.44076023,87.209,87.17,10.91135899]
[1773130079674,10.91135899,87.2,87.166,1.46834815]
[1773130079873,1.44076023,87.199,87.163,11.47275793]
[1773130080275,12.35211922,87.18,87.15,10.91135899]
[1773130080477,10.91135899,87.19,87.16,10.91135899]
[1773130080788,10.91135899,87.19,87.152,1.46834815]
[1773130081086,1.44076023,87.202,87.17,10.91135899]
[1773130081295,10.91135899,87.22,87.173,1.46834815]
[1773130081462,1.44076023,87.222,87.18,10.91135899]
[1773130081668,1.44076023,87.209,87.171,1.46834815]
[1773130081869,1.44076023,87.223,87.19,10.91135899]
[1773130082078,1.44076023,87.223,87.2,10.91135899]
[1773130082385,10.91135899,87.23,87.2,10.91135899]
[1773130082687,22.37534136,87.23,87.2,10.91135899]
[1773130082874,1.44076023,87.235,87.21,10.91135899]
[1773130083066,1.44076023,87.235,87.201,11.46775839]
[1773130083384,1.44076023,87.229,87.2,10.91135899]
[1773130083597,12.87036436,87.253,87.201,1.47974815]
[1773130083764,1.40944039,87.274,87.212,1.47974815]
[1773130083966,1.40944039,87.262,87.23,10.91135899]
[1773130084182,1.67426909,87.254,87.212,1.47974815]
[1773130084481,1.67426909,87.254,87.22,10.91135899]
[1773130084482,1.40944039,87.253,87.22,10.91135899]
[1773130084696,12.32079938,87.25,87.221,11.46512881]
[1773130084861,11.46144941,87.249,87.22,10.91135899]
[1773130085064,1.40944039,87.25,87.23,10.91135899]
[1773130085257,0.2648287,87.254,87.221,1.47974815]
[1773130085462,1.40944039,87.279,87.216,1.47974815]
[1773130085664,1.40944039,87.322,87.242,1.47974815]
[1773130085879,10.91135899,87.28,87.242,1.47974815]
[1773130086070,131.69497152,87.323,87.231,1.47974815]
[1773130086071,10.91135899,87.26,87.231,1.47974815]
[1773130086269,1.40944039,87.279,87.231,1.47974815]
[1773130086481,10.91135899,87.26,87.231,1.36371815]
[1773130087082,1.40944039,87.26,87.215,11.46583399]
[1773130087264,10.91135899,87.24,87.21,10.91135899]
[1773130087461,1.40944039,87.25,87.211,11.46644345]
[1773130087661,10.82289451,87.24,87.211,11.46644345]
[1773130087864,1.40944039,87.25,87.199,11.46802142]
[1773130088060,1.40944039,87.223,87.159,4.82477569]
[1773130088290,10.82289451,87.22,87.18,10.82289451]
[1773130088477,10.82289451,87.21,87.181,1.47974815]
[1773130088784,40.10128438,87.279,87.171,1.47974815]
[1773130089087,29.2506286,87.415,87.154,137.6873121]
[1773130089088,1.40944039,87.259,87.22,10.82289451]
[1773130089270,10.82289451,87.25,87.216,1.47974815]
[1773130089465,1.40944039,87.259,87.221,1.47974815]
[1773130089867,10.82289451,87.25,87.221,1.47974815]
[1773130090669,1.40944039,87.259,87.21,1.47974815]
[1773130090868,3.69383402,87.285,87.222,11.46499736]
[1773130090869,22.28297232,87.26,87.222,11.46499736]
[1773130091075,10.82289451,87.25,87.222,11.46499736]
[1773130091269,1.40944039,87.256,87.222,11.46499736]
[1773130091470,10.82289451,87.25,87.222,11.46499736]
[1773130091666,10.82289451,87.28,87.241,1.47974815]
[1773130091879,10.82289451,87.25,87.223,1.47974815]
[1773130092079,10.82289451,87.25,87.222,40.12749076]
[1773130092266,10.82289451,87.25,87.222,41.60723891]
[1773130092674,10.82289451,87.24,87.222,11.46499736]
[1773130093070,10.82289451,87.24,87.211,40.13255208]
[1773130093272,10.82289451,87.25,87.221,1.47974815]
[1773130093472,10.82289451,87.24,87.212,1.47974815]
[1773130093696,1.40944039,87.256,87.212,1.47974815]
[1773130093871,10.82289451,87.25,87.212,1.47974815]
[1773130094072,10.82289451,87.24,87.212,1.47974815]
[1773130094294,10.20407611,87.24,87.212,1.47974815]
[1773130094484,11.45869141,87.27,87.211,40.13255208]
[1773130094485,10.82289451,87.26,87.221,1.47974815]
[1773130094684,10.82289451,87.26,87.23,10.82289451]
[1773130094983,10.82289451,87.26,87.221,1.47974815]
[1773130094984,10.82289451,87.25,87.212,1.47974815]
[1773130095188,10.82289451,87.24,87.212,1.47974815]
[1773130095381,1.40944039,87.252,87.211,40.13255208]
[1773130095583,10.82289451,87.24,87.211,40.13255208]
[1773130095999,10.82289451,87.24,87.211,11.46644345]
[1773130096773,10.82289451,87.23,87.211,11.46644345]
[1773130096969,1.40944039,87.239,87.202,40.1366941]
[1773130097169,1.40944039,87.229,87.202,40.1366941]
[1773130097505,10.82289451,87.23,87.202,40.1366941]
[1773130097991,28.63065312,87.319,87.221,1.47974815]
[1773130098175,10.82289451,87.26,87.221,1.47974815]
[1773130098677,12.2323349,87.26,87.221,1.47974815]
[1773130098988,1.40944039,87.276,87.231,1.47974815]
[1773130099174,1.40944039,87.276,87.24,10.82289451]
[1773130099377,10.82289451,87.27,87.24,10.82289451]
[1773130099704,1.40944039,87.289,87.226,1.47974815]
[1773130099866,10.82289451,87.28,87.244,1.47974815]
[1773130100074,10.82289451,87.27,87.244,1.47974815]
[1773130100294,10.82289451,87.27,87.24,10.82289451]
[1773130100476,10.82289451,87.27,87.231,1.47974815]
[1773130100681,10.82289451,87.27,87.24,10.82289451]
[1773130101301,57.25616712,87.327,87.231,1.47974815]
[1773130101302,10.82289451,87.29,87.26,10.82289451]
[1773130101595,1.40944039,87.289,87.25,10.82289451]
[1773130101773,10.82289451,87.28,87.242,1.47974815]
[1773130101970,10.82289451,87.27,87.241,40.11875149]